bitfinex/quotes_ETHUSD_20250329
["timestamp","ask_amount","ask_price","bid_price","bid_amount"]
[1743217071580,0.05230804,1900.5,1900.1,0.1430919]
[1743217071988,1.42809184,1900.5,1900.1,0.1430919]
[1743217072794,6.68989184,1900.5,1900.1,0.1430919]
[1743217073096,6.68989184,1900.5,1899.9,10.5264]
[1743217073292,6.68989184,1900.5,1900.2,0.14270516]
[1743217073499,6.68989184,1900.5,1899.9,10.5264]
[1743217073688,6.68989184,1900.5,1900.3,0.14231846]
[1743217073997,6.68989184,1900.5,1900.0,5.26315]
[1743217074301,6.68989184,1900.5,1900.1,0.1430919]
[1743217074507,1.42809184,1900.5,1900.1,5.4059019]
[1743217074687,0.05230804,1900.5,1900.0,5.26288]
[1743217075008,5.424,1900.6,1900.3,5.26219]
[1743217075170,5.424,1900.6,1900.4,5.26197]
[1743217075369,5.424,1900.6,1900.4,0.14233952]
[1743217075995,6.05667795,1900.7,1900.3,10.52432]
[1743217076187,6.10898599,1900.7,1900.5,0.14183641]
[1743217076589,6.10898599,1900.7,1900.3,5.26213]
[1743217077537,12.60346459,1900.7,1900.2,0.8258]
[1743217077702,5.26168,1900.6,1900.0,6.08892]
[1743217077871,0.05230804,1900.5,1900.0,6.08892]
[1743217078071,0.05230804,1900.5,1900.1,0.14338312]
[1743217078271,1.10987084,1900.5,1900.1,0.14338312]
[1743217078772,1.10987084,1900.5,1900.1,5.40623312]
[1743217080301,1.10987084,1900.5,1900.2,5.26253]
[1743217080609,3.05230804,1900.6,1900.3,5.26232]
[1743217080779,3.0,1900.6,1900.4,5.2618]
[1743217081104,3.0,1900.6,1900.3,5.26225]
[1743217081298,3.05230804,1900.6,1900.3,5.26225]
[1743217081498,3.05230804,1900.6,1900.4,0.14231044]
[1743217081801,0.05230804,1900.6,1900.4,0.14231044]
[1743217082106,0.05230804,1900.6,1900.3,5.26225]
[1743217082404,0.05230804,1900.6,1900.5,0.14192383]
[1743217082616,12.68978655,1900.7,1900.4,0.14231044]
[1743217082823,12.68978655,1900.7,1900.5,0.14192383]
[1743217083321,0.05230804,1900.6,1900.3,5.26215]
[1743217084341,0.05230804,1900.6,1900.4,0.14231044]
[1743217085091,1.3265175,1900.6,1900.4,0.14231044]
[1743217085311,1.3265175,1900.6,1900.1,5.2626]
[1743217085523,16.41423545,1900.6,1900.5,0.14192383]
[1743217085731,0.7695,1900.3,1899.8,5.2636]
[1743217085895,5.44230804,1900.2,1899.8,5.2636]
[1743217086096,0.05230804,1900.2,1899.5,33.12352]
[1743217086334,5.389,1900.2,1900.0,5.26297]
[1743217086714,5.389,1900.2,1900.1,0.13020198]
[1743217087094,5.389,1900.2,1899.9,5.26337]
[1743217087295,5.389,1900.2,1900.0,0.13058876]
[1743217088320,5.389,1900.2,1899.7,10.5278]
[1743217088321,5.44130804,1900.2,1899.7,10.5278]
[1743217088490,6.02059941,1900.2,1900.1,0.13110285]
[1743217088695,6.02059941,1900.2,1899.8,5.2637]
[1743217089233,6.02059941,1900.2,1899.9,0.13210898]
[1743217089537,6.02059941,1900.2,1899.8,5.2637]
[1743217089694,7.04755665,1900.1,1900.0,0.13172216]
[1743217089894,13.70629454,1900.1,1899.3,6.0942]
[1743217090223,3.27805665,1899.8,1899.4,0.12633495]
[1743217090423,5.43830804,1899.7,1899.4,0.12633495]
[1743217090629,5.43830804,1899.7,1899.3,6.09418]
[1743217090806,5.43830804,1899.7,1899.5,0.12364543]
[1743217091012,3.27805665,1899.6,1899.4,0.12403246]
[1743217091204,0.7695,1899.4,1898.9,5.26598]
[1743217091406,13.97864469,1899.3,1898.8,5.26648]
[1743217091602,8.66105665,1899.3,1898.8,5.26636]
[1743217091815,8.71336469,1899.3,1898.8,10.53271]
[1743217092098,6.13675647,1899.2,1898.9,0.16133515]
[1743217092298,0.05230804,1899.1,1898.9,0.16133515]
[1743217092892,0.7695,1899.0,1898.6,10.53366]
[1743217093092,0.05230804,1899.1,1898.7,5.26663]
[1743217093298,5.43130804,1899.2,1898.8,0.8293]
[1743217093498,8.43130804,1899.2,1899.1,5.26565]
[1743217093847,8.43130804,1899.2,1899.0,5.26574]
[1743217094030,8.43130804,1899.2,1898.9,5.26618]
[1743217094531,11.43267795,1899.4,1899.2,5.26521]
[1743217094731,11.43267795,1899.4,1899.0,5.26578]
[1743217094901,11.43267795,1899.4,1899.1,5.2656]
[1743217095511,0.05230804,1899.3,1899.1,5.2656]
[1743217097213,0.05230804,1899.3,1899.1,10.53113]
[1743217097444,0.05230804,1899.3,1899.1,10.53102]
[1743217097610,11.43267795,1899.4,1899.2,5.26537]
[1743217098847,11.43267795,1899.4,1899.1,5.26561]
[1743217099063,3.05230804,1899.3,1899.0,5.26569]
[1743217099355,7.12016469,1899.3,1898.8,5.26622]
[1743217099513,7.12016469,1899.3,1898.9,5.26619]
[1743217100948,3.84210804,1899.3,1898.9,10.53208]
[1743217101148,3.84210804,1899.3,1899.0,5.26579]
[1743217101320,4.55234107,1899.3,1899.1,5.26552]
[1743217101527,3.84210804,1899.3,1899.1,5.26552]
[1743217101927,9.20410804,1899.3,1899.1,5.26552]
[1743217102121,8.41430804,1899.3,1899.1,5.26552]
[1743217102852,6.05667795,1899.4,1899.3,5.26509]
[1743217103022,5.41130804,1899.6,1899.4,5.2647]
[1743217103220,0.05230804,1899.6,1899.4,5.26458]
[1743217103421,5.359,1899.7,1899.5,5.26436]
[1743217103621,0.05230804,1899.8,1899.5,5.26436]
[1743217103825,5.362,1899.8,1899.7,5.26398]
[1743217104153,6.05667795,1899.9,1899.7,5.26398]
[1743217104459,0.05230804,1899.8,1899.6,5.26414]
[1743217104948,0.05230804,1899.8,1899.6,10.52829]
[1743217105118,6.05667795,1899.9,1899.7,5.26398]
[1743217105322,6.10898599,1899.9,1899.7,5.26398]
[1743217105754,6.05667795,1899.9,1899.8,5.26371]
[1743217105954,6.1488,1900.3,1900.2,5.2626]
[1743217106159,5.41130804,1900.3,1900.2,5.2626]
[1743217106328,8.41130804,1900.3,1900.2,5.2626]
[1743217106535,3.05230804,1900.3,1900.2,5.2626]
[1743217106730,3.0,1900.3,1900.1,5.2627]
[1743217106946,3.0,1900.3,1900.2,5.2626]
[1743217107149,11.41567795,1900.5,1900.4,5.26205]
[1743217107460,6.05667795,1900.5,1900.3,5.26232]
[1743217107654,6.10898599,1900.5,1900.4,5.26205]
[1743217107847,6.05667795,1900.5,1900.4,5.26205]
[1743217108528,10.52437,1900.3,1898.9,0.7993]
[1743217108836,4.06785665,1899.7,1899.3,5.26496]
[1743217109161,6.10898599,1899.6,1899.0,0.05265284]
[1743217109457,0.05230804,1899.8,1899.5,5.26454]
[1743217109623,0.05230804,1899.9,1899.5,5.26454]
[1743217109829,0.05230804,1899.9,1899.5,5.26438]
[1743217111530,0.05230804,1899.9,1899.6,5.26414]
[1743217111731,0.05230804,1899.9,1899.7,5.26393]
[1743217111956,0.05230804,1900.0,1899.7,5.26393]
[1743217112556,0.05230804,1900.2,1899.9,5.26343]
[1743217112855,3.05230804,1900.4,1899.9,6.01683]
[1743217113960,0.05230804,1900.4,1900.0,5.2631]
[1743217114160,0.05230804,1900.4,1899.9,6.01665]
[1743217114662,0.05230804,1900.4,1899.9,11.27995]
[1743217114958,0.05230804,1900.4,1899.9,6.01665]
[1743217115162,0.05230804,1900.4,1899.9,11.27995]
[1743217115958,0.05230804,1900.4,1900.0,5.26314]
[1743217116464,0.05230804,1900.4,1899.9,12.407935]
[1743217116642,0.05230804,1900.4,1899.9,7.144645]
[1743217118442,0.05230804,1900.4,1899.9,12.407945]
[1743217118643,0.05230804,1900.4,1899.9,7.144645]
[1743217119146,1.71428308,1900.4,1899.9,7.144645]
[1743217119565,3.27805665,1900.1,1899.6,0.7566]
[1743217119732,5.31546804,1900.0,1899.5,5.26439]
[1743217119936,0.05230804,1900.0,1899.5,5.26439]
[1743217120769,0.05230804,1900.0,1899.6,5.26411]
[1743217121767,0.05230804,1900.1,1899.8,5.26356]
[1743217121970,0.83240804,1900.2,1899.7,10.52779]
[1743217122270,0.83240804,1900.2,1899.7,5.26382]
[1743217122878,0.83240804,1900.2,1899.7,5.26381]
[1743217123571,0.83240804,1900.2,1899.7,5.790191]
[1743217123770,0.83240804,1900.2,1899.8,5.26367]
[1743217124869,0.83240804,1900.2,1899.9,5.26338]
[1743217125076,0.05230804,1900.3,1899.9,10.52676]
[1743217125496,0.8309,1900.4,1899.9,10.52676]
[1743217125497,0.88320804,1900.4,1900.0,5.26301]
[1743217127391,0.88320804,1900.4,1900.1,5.26285]
[1743217127709,6.05667795,1900.5,1900.3,5.26232]
[1743217127876,6.05667795,1900.5,1900.3,5.26219]
[1743217128060,9.3347346,1900.5,1900.1,5.26266]
[1743217128261,6.09312,1900.4,1899.9,5.26328]
[1743217128479,0.05230804,1900.3,1900.0,5.26315]
[1743217129096,8.54110665,1900.1,1899.6,6.31998081]
[1743217129291,0.05230804,1900.0,1899.6,6.31998081]
[1743217129493,0.05230804,1900.1,1899.7,5.26385]
[1743217130447,0.05230804,1900.1,1899.6,5.26409]
[1743217130676,0.05230804,1900.1,1899.6,10.52824]
[1743217130887,0.05230804,1900.1,1899.7,5.26389]
[1743217131043,0.05230804,1900.1,1899.7,5.26376]
[1743217131241,0.05230804,1900.1,1899.8,5.26355]
[1743217132154,0.05230804,1900.1,1899.7,5.26376]
[1743217132355,0.05230804,1900.1,1899.7,10.52764]
[1743217132585,0.05230804,1900.1,1899.7,11.6330449]
[1743217132769,0.05230804,1900.1,1899.7,5.26376]
[1743217133353,0.05230804,1900.1,1899.8,5.26363]
[1743217133887,6.93988599,1900.2,1899.8,5.26347]
[1743217134089,6.93988599,1900.2,1899.8,10.52706]
[1743217134398,0.8309,1900.5,1900.0,0.7563]
[1743217134765,0.8309,1900.5,1900.3,5.26221]
[1743217135476,0.8309,1900.5,1900.3,5.2622]
[1743217135678,0.8309,1900.5,1900.3,5.26212]
[1743217136087,0.8309,1900.5,1900.4,5.26205]
[1743217136388,6.88757795,1900.8,1900.5,5.26171]
[1743217136767,6.88757795,1900.8,1900.7,5.26121]
[1743217137166,6.88757795,1900.8,1900.6,5.26147]
[1743217137364,6.88757795,1900.8,1900.6,5.26138]
[1743217137760,6.88757795,1900.8,1900.6,10.52268]
[1743217137960,6.88757795,1900.8,1900.5,5.26174]
[1743217138162,6.88757795,1900.8,1900.5,6.4193357]
[1743217138859,6.88757795,1900.8,1900.5,11.6808957]
[1743217139059,6.88757795,1900.8,1900.5,6.4191557]
[1743217139259,0.05230804,1900.7,1900.3,5.26228]
[1743217139564,5.31351804,1900.7,1900.2,5.26244]
[1743217139767,0.05230804,1900.7,1900.2,10.52484]
[1743217139964,5.31352804,1900.7,1900.2,10.52487]
[1743217140257,5.31352804,1900.7,1899.9,10.52675]
[1743217140258,0.8005,1900.5,1899.9,10.52675]
[1743217140568,3.33036469,1900.4,1899.9,6.315965]
[1743217140767,3.33036469,1900.4,1900.0,5.2631]
[1743217141293,6.06293,1900.3,1899.8,5.26366]
[1743217141496,0.05230804,1900.2,1899.8,5.26366]
[1743217142397,0.05230804,1900.2,1899.9,5.2634]
[1743217142586,0.8005,1900.1,1899.6,0.526409]
[1743217142782,0.8005,1900.1,1899.8,5.26369]
[1743217142999,0.8005,1900.1,1899.9,5.26343]
[1743217143497,0.85280804,1900.3,1900.0,10.52617]
[1743217143799,0.85280804,1900.3,1900.0,5.26302]
[1743217144196,0.8005,1900.3,1900.0,5.789442]
[1743217144398,0.8005,1900.3,1900.1,5.26287]
[1743217145567,0.8005,1900.3,1900.1,5.2627]
[1743217146074,6.10898599,1900.4,1900.2,5.2626]
[1743217146290,6.05667795,1900.4,1900.2,5.2626]
[1743217146494,6.05667795,1900.4,1900.3,5.26232]
[1743217147273,0.85280804,1900.7,1900.4,5.26188]
[1743217147606,3.85280804,1900.7,1900.4,5.26188]
[1743217148400,5.26178,1900.5,1900.0,5.26303]
[1743217148699,0.85280804,1900.4,1900.2,5.26258]
[1743217149401,0.85280804,1900.4,1899.8,5.26355]
[1743217149577,15.44980264,1900.4,1899.8,10.52714]
[1743217149910,1.54498026,1900.3,1900.0,5.26313]
[1743217150065,0.05230804,1900.2,1899.9,5.26321]
[1743217150273,0.05230804,1900.2,1899.7,6.06491]
[1743217150498,0.8005,1900.1,1899.7,5.26371]
[1743217150799,0.05230804,1900.0,1899.7,5.26371]
[1743217151768,0.05230804,1900.0,1899.7,10.52758]
[1743217151969,0.05230804,1900.0,1899.7,5.26371]
[1743217153573,5.26372,1899.8,1899.3,5.26495]
[1743217153773,0.8005,1899.6,1899.4,5.26466]
[1743217154319,0.8005,1899.6,1899.3,5.26504]
[1743217156507,0.8005,1899.6,1899.3,5.2649]
[1743217156805,0.8005,1899.6,1899.4,5.2647]
[1743217157307,1.1857808,1899.6,1899.3,5.26498]
[1743217157776,0.8005,1899.6,1899.3,10.52986]
[1743217157978,0.8005,1899.6,1899.4,5.26472]
[1743217158204,0.8005,1899.6,1899.5,5.26454]
[1743217158612,0.8005,1899.6,1899.4,5.26472]
[1743217159508,0.8005,1899.6,1899.4,5.26466]
[1743217159709,0.7553,1899.8,1899.7,5.26398]
[1743217160086,6.05667795,1899.9,1899.8,5.26371]
[1743217161810,0.7553,1900.2,1900.0,5.26315]
[1743217162001,0.80760804,1900.2,1900.0,5.26315]
[1743217162190,0.7553,1900.2,1900.0,5.26315]
[1743217163808,0.7553,1900.2,1900.0,10.52612]
[1743217163985,0.7553,1900.2,1900.0,5.26297]
[1743217164608,0.05230804,1900.1,1899.7,5.26396]
[1743217164914,0.05230804,1900.1,1899.8,10.52707]
[1743217165113,0.05230804,1900.1,1899.9,5.26341]
[1743217165621,0.80760804,1900.2,1900.0,5.26315]
[1743217166913,0.05230804,1900.2,1900.1,5.26288]
[1743217167209,0.05230804,1900.3,1900.0,5.26295]
[1743217167515,0.05230804,1900.3,1900.0,10.52597]
[1743217167721,0.05230804,1900.3,1900.0,5.26295]
[1743217167888,0.05230804,1900.3,1899.7,6.394586]
[1743217168090,0.80760804,1900.4,1900.2,5.26246]
[1743217170925,0.779,1900.4,1900.1,5.26276]
[1743217171124,0.05230804,1900.3,1900.1,5.26276]
[1743217171326,0.05230804,1900.3,1900.2,5.2626]
[1743217171526,9.3347346,1900.3,1899.7,1.130836]
[1743217171724,9.3347346,1900.3,1899.5,0.7553]
[1743217171725,0.779,1900.1,1899.9,5.26339]
[1743217171902,0.779,1900.1,1900.0,5.26315]
[1743217172101,3.05230804,1900.2,1900.1,5.26288]
[1743217172297,3.0,1900.2,1900.1,5.26288]
[1743217173027,6.83567795,1900.3,1900.1,5.26288]
[1743217173916,6.83567795,1900.3,1900.1,5.23965185]
[1743217174130,6.83567795,1900.3,1900.0,5.26302]
[1743217174424,6.83567795,1900.3,1900.0,10.52606]
[1743217174806,6.88798599,1900.3,1900.0,5.26302]
[1743217175007,6.88798599,1900.3,1900.0,10.52606]
[1743217175308,6.88798599,1900.3,1900.1,5.26284]
[1743217175829,6.88798599,1900.3,1900.2,5.2626]
[1743217175830,6.10898599,1900.3,1900.2,5.2626]
[1743217176030,6.05667795,1900.3,1900.2,5.2626]
[1743217177904,6.05667795,1900.3,1900.2,6.0179]
[1743217178919,3.05230804,1900.7,1900.4,5.26182]
[1743217179306,3.05230804,1900.7,1900.5,5.26175]
[1743217180138,3.05230804,1900.7,1900.4,10.52375]
[1743217180346,3.0,1900.7,1900.5,5.2615]
[1743217180706,6.05667795,1900.8,1900.7,5.26121]
[1743217180911,9.05667795,1900.8,1900.7,5.26121]
[1743217181840,6.05667795,1900.8,1900.7,5.26121]
[1743217185046,3.0,1900.9,1900.7,5.26121]
[1743217185615,3.0,1900.9,1900.7,10.5223]
[1743217185972,3.0,1900.9,1900.7,5.26109]
[1743217187110,3.0,1900.9,1900.2,0.7584]
[1743217187111,4.48414806,1900.8,1900.2,0.7584]
[1743217187314,9.74526806,1900.8,1900.3,5.26218]
[1743217187569,3.7947,1900.5,1900.1,33.11987]
[1743217187864,3.7947,1900.5,1899.8,1.04441865]
[1743217187865,0.7947,1900.2,1899.8,5.26354]
[1743217188016,3.0,1900.0,1899.7,5.26392]
[1743217188221,0.7947,1899.8,1899.6,10.52813]
[1743217188420,0.7947,1899.8,1899.6,11.580943]
[1743217188656,0.7947,1899.8,1899.6,6.316863]
[1743217188817,0.7947,1899.8,1899.4,33.11863]
[1743217189014,0.05230804,1899.7,1899.5,5.26222154]
[1743217190065,0.7947,1899.8,1899.6,5.26426]
[1743217190269,0.7947,1899.8,1899.7,5.26398]
[1743217191248,0.7947,1899.8,1899.6,5.26426]
[1743217191422,0.7947,1899.8,1899.6,10.52838]
[1743217191620,0.7947,1899.8,1899.7,5.26398]
[1743217192032,3.0,1900.0,1899.8,5.26371]
[1743217192440,3.0,1900.0,1899.7,10.52796]
[1743217192846,3.0,1900.0,1899.8,5.2637]
[1743217193444,3.0,1900.0,1899.7,10.52784]
[1743217193640,3.0,1900.0,1899.7,5.26386]
[1743217194232,3.90915714,1900.0,1899.7,10.52773]
[1743217195043,0.05230804,1899.9,1899.4,33.11874]
[1743217195361,3.0,1899.7,1899.5,5.26439]
[1743217196263,3.05230804,1899.7,1899.5,5.26439]
[1743217196426,3.0,1899.7,1899.5,5.26439]
[1743217196931,3.05230804,1899.7,1899.5,5.26439]
[1743217197164,3.0,1899.7,1899.5,5.26439]
[1743217197932,3.0,1899.7,1899.5,10.52881]
[1743217198158,3.0,1899.7,1899.6,5.26426]
[1743217198362,6.05667795,1899.9,1899.7,5.26398]
[1743217198562,3.0,1899.8,1899.7,5.26398]
[1743217199438,3.0,1899.8,1899.6,5.26417]
[1743217199879,3.0,1899.8,1899.5,5.2645]
[1743217200178,0.05230804,1899.7,1899.4,27.854]
[1743217200478,3.0,1899.6,1899.4,27.854]
[1743217200961,3.0,1899.6,1899.2,5.26513]
[1743217201155,3.0,1899.6,1899.3,5.26494]
[1743217201537,3.0,1899.6,1899.1,0.8295]
[1743217201538,11.90158002,1899.6,1899.1,5.26544]
[1743217201773,3.7968,1899.4,1899.0,5.26579]
[1743217202069,0.05230804,1899.3,1899.0,5.26579]
[1743217202762,0.05230804,1899.3,1899.1,5.26564]
[1743217203269,0.05230804,1899.3,1899.0,5.26571]
[1743217203469,0.7968,1899.7,1899.6,5.26426]
[1743217203656,6.05667795,1899.9,1899.1,0.88215508]
[1743217203657,3.0,1899.8,1899.5,5.26445]
[1743217203972,3.0,1899.8,1899.5,5.2590431]
[1743217204140,3.0,1899.8,1899.6,5.26421]
[1743217204482,6.10898599,1899.9,1899.7,5.26398]
[1743217204683,6.05667795,1899.9,1899.8,5.26371]
[1743217204858,4.09419316,1900.1,1899.6,1.05232531]
[1743217205060,0.01081351,1900.1,1899.8,5.2635]
[1743217205643,0.01081351,1900.1,1899.9,5.26327]
[1743217206453,0.01081351,1900.1,1899.9,5.26339]
[1743217206945,0.01081351,1900.1,1899.9,5.2633]
[1743217207243,0.01081351,1900.1,1900.0,5.26315]
[1743217207443,0.01081351,1900.1,1900.0,6.398745]
[1743217209274,0.01081351,1900.1,1899.9,5.2633]
[1743217209605,5.2637,1899.9,1899.4,5.26463]
[1743217209892,0.7968,1899.7,1899.4,5.26463]
[1743217210382,0.7968,1899.7,1899.5,5.26451]
[1743217210760,6.05667795,1900.0,1899.8,5.26371]
[1743217210956,0.01081351,1900.1,1900.0,5.26315]
[1743217211679,0.01081351,1900.1,1900.0,6.09265]
[1743217212766,0.01081351,1900.1,1900.0,6.64265]
[1743217215177,0.01081351,1900.1,1900.0,7.70123197]
[1743217215354,3.51e-06,1900.1,1900.0,8.99769817]
[1743217215561,3.51e-06,1900.1,1900.0,9.05031108]
[1743217215962,3.51e-06,1900.1,1900.0,8.99769817]
[1743217218086,3.51e-06,1900.1,1900.0,11.99769817]
[1743217219698,0.8316,1901.5,1901.3,5.25955]
[1743217219981,6.05667795,1901.7,1901.6,5.25872]
[1743217220188,6.05667795,1901.7,1901.5,5.25883]
[1743217220381,0.8316,1901.5,1901.1,5.25991]
[1743217220576,3.8316,1901.5,1901.1,5.25991]
[1743217220886,0.38316,1901.4,1901.1,5.25991]
[1743217221283,0.38316,1901.4,1901.1,10.51984]
[1743217221485,0.38316,1901.4,1901.1,5.25991]
[1743217221809,3.8316,1901.2,1900.9,27.857]
[1743217221977,9.88827795,1901.2,1900.9,33.11753]
[1743217222175,9.88827795,1901.2,1901.1,5.26011]
[1743217222372,9.88827795,1901.2,1901.0,5.26016]
[1743217222571,9.88827795,1901.2,1901.1,5.26011]
[1743217223170,9.88827795,1901.2,1901.0,5.26016]
[1743217223568,6.88827795,1901.2,1901.1,5.26011]
[1743217224702,7.57710575,1901.2,1900.9,27.857]
[1743217224902,7.62941379,1901.2,1900.9,27.857]
[1743217225494,7.62941379,1901.2,1900.9,33.11764]
[1743217225784,8.26022,1901.1,1900.6,5.26133]
[1743217225984,0.8316,1900.9,1900.6,5.26133]
[1743217226488,0.8316,1900.9,1900.7,5.26119]
[1743217226709,3.8316,1901.1,1900.9,5.26059]
[1743217226887,3.88390804,1901.1,1900.9,5.26059]
[1743217227411,3.0,1901.1,1901.0,5.26038]
[1743217227558,6.05667795,1901.2,1901.1,5.26011]
[1743217227979,0.8316,1901.3,1901.2,5.25983]
[1743217228787,3.8316,1901.5,1901.3,5.25935]
[1743217229003,3.8316,1901.5,1901.1,5.25996]
[1743217229159,0.05230804,1901.4,1901.2,5.2598]
[1743217229364,0.8316,1901.3,1901.0,5.26013]
[1743217229595,0.8316,1901.3,1901.1,5.25997]
[1743217230093,0.8316,1901.3,1901.2,5.25983]
[1743217231595,6.88038599,1901.6,1901.5,5.259]
[1743217231898,6.82807795,1901.6,1901.5,5.259]
[1743217232265,6.05667795,1901.6,1901.5,5.259]
[1743217233412,6.05667795,1901.6,1901.4,5.25927]
[1743217233801,6.66234575,1901.6,1901.2,5.25969]
[1743217234017,12.35883102,1901.5,1901.1,5.25998]
[1743217234222,3.7714,1901.5,1901.3,5.25951]
[1743217234510,0.7714,1901.3,1901.0,5.26038]
[1743217234897,0.7714,1901.3,1901.1,5.26001]
[1743217235310,0.7714,1901.3,1901.0,10.52046]
[1743217235715,0.7714,1901.3,1901.1,5.2599]
[1743217235882,0.7714,1901.3,1901.0,5.26034]
[1743217236084,0.7714,1901.3,1900.9,5.26044]
[1743217236295,0.7714,1901.3,1901.0,5.26036]
[1743217236588,0.7714,1901.3,1901.0,5.26017]
[1743217236788,0.7714,1901.3,1901.1,5.25999]
[1743217236989,6.03095,1901.3,1900.9,5.26066]
[1743217237189,6.03095,1901.3,1901.0,5.26037]
[1743217237190,1.7073271,1901.3,1901.0,5.26037]
[1743217238020,1.7073271,1901.3,1900.9,5.26066]
[1743217238021,1.7073271,1901.3,1900.9,5.2605]
[1743217238222,1.7073271,1901.3,1901.1,5.26]
[1743217238420,0.7714,1901.3,1901.1,5.26]
[1743217238789,0.7714,1901.3,1900.5,0.39035471]
[1743217238990,5.26084,1900.9,1900.4,33.10792]
[1743217239317,0.82370804,1900.8,1900.4,33.10792]
[1743217239518,0.7714,1900.8,1900.4,33.10787]
[1743217239695,0.7714,1900.8,1900.4,38.36971]
[1743217241621,0.7714,1900.8,1900.4,33.10784]
[1743217241992,0.7714,1900.8,1900.4,38.36969]
[1743217242321,0.7714,1900.8,1900.5,5.26176]
[1743217242907,0.7714,1900.8,1900.4,27.846]
[1743217242908,3.0,1900.6,1900.4,27.846]
[1743217243091,3.9084918,1900.6,1900.4,27.846]
[1743217243489,9.1701018,1900.6,1900.4,27.846]
[1743217243917,9.22240984,1900.6,1900.4,27.846]
[1743217244519,8.26177,1900.5,1900.4,27.846]
[1743217244689,9.03317,1900.5,1900.1,5.26276]
[1743217244895,9.08547804,1900.5,1900.1,10.52548]
[1743217245108,3.82370804,1900.5,1900.1,10.52548]
[1743217245598,3.82370804,1900.5,1900.2,5.26247]
[1743217245799,3.7714,1900.5,1900.2,5.26247]
[1743217247418,8.26229,1900.4,1899.9,6.01864]
[1743217247608,6.02115,1900.2,1899.8,5.26357]
[1743217247807,6.07345804,1900.2,1899.8,5.26357]
[1743217248009,3.81070804,1900.2,1899.8,5.26356]
[1743217248199,3.7584,1900.2,1899.9,5.26341]
[1743217248401,3.7584,1900.2,1900.0,5.26303]
[1743217248602,3.7584,1900.2,1899.9,5.26343]
[1743217248826,3.7584,1900.2,1899.8,8.574836]
[1743217249026,9.02104,1900.2,1899.8,8.574836]
[1743217249203,3.7584,1900.2,1899.9,5.26342]
[1743217249822,3.7584,1900.2,1899.8,8.574666]
[1743217250027,9.02107,1900.2,1899.8,8.574666]
[1743217250234,3.7584,1900.2,1899.8,13.838146]
[1743217250528,9.02101,1900.2,1899.8,8.574636]
[1743217250900,9.02101,1900.2,1899.8,13.838116]
[1743217251223,3.7584,1900.2,1899.8,13.838116]
[1743217251417,3.7584,1900.2,1899.9,5.26337]
[1743217251730,3.7584,1900.2,1899.9,6.6470216]
[1743217252034,3.7584,1900.2,1900.0,10.526]
[1743217252207,3.7584,1900.2,1900.0,5.26298]
[1743217252532,0.05230804,1900.3,1900.2,5.2626]
[1743217252708,0.7584,1900.9,1900.6,5.26131]
[1743217253031,0.7584,1900.9,1900.7,5.2611]
[1743217253234,6.05667795,1901.0,1900.8,5.26094]
[1743217253417,9.05667795,1901.0,1900.9,5.26066]
[1743217253633,0.7584,1901.2,1901.1,5.26011]
[1743217253828,6.86738599,1901.5,1901.1,10.52022]
[1743217254136,3.0,1901.4,1901.1,5.26011]
[1743217254330,3.0,1901.4,1901.1,10.51998]
[1743217254530,6.86738599,1901.5,1901.2,5.25965]
[1743217254734,6.86738599,1901.5,1901.0,5.26032]
[1743217254735,0.7584,1901.5,1901.0,5.26032]
[1743217254924,0.7584,1901.5,1901.3,5.25944]
[1743217255508,9.06986804,1901.5,1901.1,5.786082]
[1743217255810,9.06986804,1901.5,1901.0,5.26018]
[1743217256010,9.06986804,1901.5,1901.0,10.52037]
[1743217256415,3.81070804,1901.5,1901.1,5.26008]
[1743217256613,5.04527814,1901.5,1901.1,5.26008]
[1743217256838,5.04527814,1901.5,1901.2,5.25979]
[1743217258311,11.10195609,1901.5,1900.9,6.31255]
[1743217258511,16.30879805,1901.5,1901.1,5.25997]
[1743217258945,11.04964805,1901.5,1901.1,10.51996]
[1743217259239,11.04964805,1901.5,1901.1,10.5199]
[1743217259617,11.04964805,1901.5,1901.1,10.51984]
[1743217260242,0.05230804,1901.4,1901.1,5.25991]
[1743217260616,0.05230804,1901.4,1901.1,10.51987]
[1743217260943,0.05230804,1901.4,1901.1,5.25991]
[1743217261547,0.05230804,1901.4,1901.1,10.5199]
[1743217261714,0.05230804,1901.4,1901.1,5.25991]
[1743217262445,11.04964805,1901.5,1901.2,5.25982]
[1743217262647,0.05230804,1901.4,1901.2,5.25982]
[1743217263142,0.05230804,1901.4,1901.1,5.25991]
[1743217263954,0.05230804,1901.4,1901.1,10.51991]
[1743217264445,0.05230804,1901.4,1901.1,5.25991]
[1743217264620,6.81507795,1901.5,1901.3,5.25955]
[1743217266144,10.09109093,1901.5,1901.1,5.25988]
[1743217266333,0.05230804,1901.4,1901.1,5.25988]
[1743217266529,3.05230804,1901.4,1901.0,5.26038]
[1743217266733,3.05230804,1901.4,1900.7,33.11606]
[1743217266734,8.26001,1901.2,1900.7,33.11606]
[1743217267032,0.05230804,1901.1,1900.8,5.26071]
[1743217267547,3.05230804,1901.2,1900.9,10.52111]
[1743217267842,3.0,1901.2,1901.0,5.26018]
[1743217268047,6.85497795,1901.3,1901.1,10.52011]
[1743217268219,0.7983,1901.3,1901.1,5.26]
[1743217268415,1.1833608,1901.3,1901.1,5.26]
[1743217268851,1.1833608,1901.3,1901.1,5.25995]
[1743217269026,0.7983,1901.3,1901.1,5.25995]
[1743217269539,0.7983,1901.3,1901.0,5.26028]
[1743217269928,0.7983,1901.3,1901.0,5.26016]
[1743217270145,0.7983,1901.3,1901.1,5.25991]
[1743217270327,0.7983,1901.3,1901.1,10.51984]
[1743217270749,0.7983,1901.3,1901.2,5.25983]
[1743217271243,0.7983,1901.3,1901.1,5.26007]
[1743217271450,0.7983,1901.1,1900.7,5.26103]
[1743217271619,0.7983,1900.9,1900.6,5.26123]
[1743217272649,0.7983,1900.9,1900.6,10.5226]
[1743217272944,5.26198,1900.5,1900.0,5.26301]
[1743217273145,3.7983,1900.2,1899.1,0.7712]
[1743217273349,6.06193,1899.9,1899.4,5.26461]